fUST/lending_fUST_20250625
["ID","MTS","AMOUNT","RATE_DAILY","PERIOD"]
[367403859,1750785042750,-500.0,0.00017242,2]
[367403860,1750785042760,-500.0,0.00017242,2]
[367403861,1750785042770,-500.0,0.00017242,2]
[367403862,1750785042779,-500.0,0.00017242,2]
[367403863,1750785042789,-500.0,0.00017242,2]
[367403864,1750785042799,-500.0,0.00017242,2]
[367403865,1750785042809,-500.0,0.00017242,2]
[367403866,1750785042818,-500.0,0.00017242,2]
[367403867,1750785042828,-500.0,0.00017242,2]
[367403868,1750785042837,-500.0,0.00017242,2]
[367403869,1750785042852,-500.0,0.00017242,2]
[367403870,1750785042862,-500.0,0.00017242,2]
[367403871,1750785042871,-500.0,0.00017242,2]
[367403872,1750785042881,-697.64,0.00017246,2]
[367403873,1750785042891,-460.0,0.00017251,2]
[367403874,1750785042901,-460.0,0.00017253,2]
[367403876,1750785042910,-460.0,0.00017253,2]
[367403878,1750785042920,-460.0,0.00017255,2]
[367403880,1750785042930,-460.0,0.00017255,2]
[367403881,1750785042939,-300.0,0.00017255,2]
[367403882,1750785042949,-697.64,0.0001752,2]
[367403883,1750785042962,-460.0,0.00017527,2]
[367403884,1750785042972,-460.0,0.00017527,2]
[367403885,1750785042981,-460.0,0.00017529,2]
[367403886,1750785042991,-460.0,0.00017529,2]
[367403888,1750785043000,-151.0,0.00017615,2]
[367403890,1750785043009,-202.44010805,0.00017615,2]
[367403891,1750785043018,-151.0,0.00017642,2]
[367403893,1750785043027,-151.0,0.0001767,2]
[367403895,1750785043037,-151.0,0.00017697,2]
[367403897,1750785043048,-151.0,0.00017725,2]
[367403899,1750785043057,-179.70616732,0.00017752,2]
[367403901,1750785043067,-697.64,0.00017794,2]
[367403904,1750785043076,-281.46,0.00017801,2]
[367403906,1750785043085,-2788.45673178,0.00017804,2]
[367403909,1750785043094,-709.17,0.00017804,2]
[367403912,1750785043103,-460.0,0.00017804,2]
[367403914,1750785043112,-953.76,0.00017804,2]
[367403916,1750785043121,-629.6,0.00017804,2]
[367403917,1750785043130,-613.13,0.00017804,2]
[367403918,1750785043139,-460.0,0.00017804,2]
[367403919,1750785043149,-1830.83,0.00017804,2]
[367403920,1750785043158,-713.89,0.00017804,2]
[367403921,1750785043167,-374.12638698,0.00017804,2]
[367403924,1750785043180,-85.87361302,0.00017804,2]
[367403925,1750785043190,-460.0,0.00017804,2]
[367403927,1750785043199,-478.16,0.00017804,2]
[367403928,1750785043208,-155.27,0.00017804,2]
[367403929,1750785043217,-460.0,0.00017804,2]
[367403930,1750785043227,-1874.22,0.00017804,2]
[367403931,1750785043236,-921.22,0.00017804,2]
[367403932,1750785043245,-247.67742094,0.00017805,2]
[367403933,1750785043254,-460.0,0.00017805,2]
[367403934,1750785043264,-460.0,0.00017805,2]
[367403935,1750785043274,-1348.12,0.00017805,2]
[367403936,1750785043283,-658.73,0.00017805,2]
[367403937,1750785043292,-498.33214505,0.00017805,2]
[367403938,1750785043305,-1383.42785495,0.00017805,2]
[367403939,1750785043314,-575.2,0.00017805,2]
[367403940,1750785043324,-864.52,0.00017805,2]
[367403941,1750785043333,-540.0,0.00017805,2]
[367403942,1750785043343,-1357.9,0.00017805,2]
[367403943,1750785043352,-460.0,0.00017805,2]
[367403944,1750785043361,-460.0,0.00017805,2]
[367403945,1750785043370,-1126.11,0.00017806,2]
[367403946,1750785043379,-460.0,0.00017806,2]
[367403947,1750785043389,-1000.0,0.00017806,2]
[367403948,1750785043398,-1000.0,0.00017807,2]
[367403949,1750785043407,-446.17332533,0.00017807,2]
[367403950,1750785043417,-864.52,0.00017807,2]
[367403951,1750785043426,-460.0,0.00017808,2]
[367403952,1750785043435,-460.0,0.00017808,2]
[367403953,1750785043444,-460.0,0.00017808,2]
[367403954,1750785043453,-400.0,0.00017831,2]
[367403955,1750785043462,-800.0,0.00017845,2]
[367403956,1750785043471,-800.0,0.00017865,2]
[367403957,1750785043481,-168.0,0.00017866,2]
[367403958,1750785043491,-151.0,0.00017894,2]
[367403959,1750785043500,-151.0,0.00017894,2]
[367403960,1750785043510,-800.0,0.00017894,2]
[367403961,1750785043519,-151.0,0.00017936,2]
[367403962,1750785043529,-342.49706681,0.00017937,2]
[367403963,1750785043538,-723.0,0.00017955,2]
[367403964,1750785043549,-700.0,0.00017972,2]
[367403965,1750785043558,-400.0,0.00017975,2]
[367403966,1750785043567,-272.06201231,0.00017994,2]
[367403967,1750785043576,-151.0,0.00018,2]
[367403968,1750785043586,-2267.276403,0.00018003,2]
[367403969,1750785043596,-151.0,0.00018008,2]
[367403970,1750785043605,-151.0,0.00018008,2]
[367403971,1750785043614,-800.0,0.00018023,2]
[367403972,1750785043626,-500.0,0.00018058,2]
[367403973,1750785043635,-864.52,0.00018063,2]
[367403974,1750785043646,-160.0,0.00018064,2]
[367403975,1750785043655,-160.0,0.00018064,2]
[367403976,1750785043664,-160.0,0.00018064,2]
[367403977,1750785043674,-160.0,0.00018064,2]
[367403978,1750785043683,-836.80226758,0.00018064,2]
[367403979,1750785043692,-12556.00642039,0.00018064,2]
[367403980,1750785043701,-2928.36,0.00018066,2]
[367403981,1750785043710,-473.47,0.00018066,2]
[367403982,1750785043720,-460.0,0.00018067,2]
[367403983,1750785043732,-460.0,0.00018067,2]
[367403984,1750785043742,-1955.78,0.00018068,2]
[367403986,1750785043751,-2843.3,0.00018068,2]
[367403988,1750785043761,-806.96,0.00018068,2]
[367403990,1750785043770,-460.0,0.00018068,2]
[367403992,1750785043780,-1718.2,0.00018068,2]
[367403995,1750785043789,-1574.79,0.00018068,2]
[367403998,1750785043800,-2657.44,0.00018068,2]
[367404001,1750785043811,-460.0,0.00018068,2]
[367404002,1750785043820,-1229.31,0.00018068,2]
[367404004,1750785043830,-781.13,0.00018068,2]
[367404007,1750785043839,-607.42,0.00018068,2]
[367404009,1750785043849,-561.56,0.00018068,2]
[367404011,1750785043858,-526.37,0.00018068,2]
[367404014,1750785043867,-697.64,0.00018068,2]
[367404016,1750785043877,-460.0,0.00018073,2]
[367404017,1750785043886,-460.0,0.00018073,2]
[367404018,1750785043896,-460.0,0.00018073,2]
[367404019,1750785043905,-460.0,0.00018073,2]
[367404020,1750785043915,-580.43,0.00018073,2]
[367404021,1750785043924,-528.16,0.00018073,2]
[367404022,1750785043934,-474.27589928,0.00018073,2]
[367404023,1750785043943,-460.0,0.00018075,2]
[367404024,1750785043953,-460.0,0.00018075,2]
[367404025,1750785043963,-920.05,0.00018075,2]
[367404026,1750785043973,-460.0,0.00018075,2]
[367404027,1750785043982,-583.13,0.00018075,2]
[367404028,1750785043991,-583.80331621,0.00018077,2]
[367404029,1750785044000,-774.22,0.00018077,2]
[367404030,1750785044009,-586.45,0.00018077,2]
[367404031,1750785044018,-572.14,0.00018077,2]
[367404032,1750785044027,-460.0,0.00018077,2]
[367404033,1750785044039,-460.0,0.00018077,2]
[367404034,1750785044050,-460.0,0.00018077,2]
[367404035,1750785044059,-1194.79,0.00018077,2]
[367404036,1750785044069,-864.52,0.00018077,2]
[367404037,1750785044078,-533.68452955,0.00018077,2]
[367404038,1750785044094,-29.66547045,0.00018077,2]
[367404039,1750785044103,-460.0,0.00018077,2]
[367404040,1750785044113,-460.0,0.00018077,2]
[367404041,1750785044122,-528.22,0.00018077,2]
[367404042,1750785044131,-1874.29,0.00018078,2]
[367404043,1750785044140,-460.0,0.00018078,2]
[367404044,1750785044151,-460.0,0.00018078,2]
[367404045,1750785044161,-487.54,0.00018078,2]
[367404046,1750785044170,-526.37,0.00018078,2]
[367404047,1750785044180,-460.0,0.00018078,2]
[367404048,1750785044189,-543.87,0.00018078,2]
[367404049,1750785044200,-460.0,0.00018078,2]
[367404050,1750785044210,-4413.81,0.00018078,2]
[367404051,1750785044220,-709.17,0.00018078,2]
[367404052,1750785044229,-460.0,0.00018078,2]
[367404053,1750785044239,-953.76,0.00018078,2]
[367404054,1750785044248,-629.6,0.00018078,2]
[367404055,1750785044258,-613.13,0.00018078,2]
[367404056,1750785044268,-237.71,0.00018078,2]
[367404057,1750785044277,-1830.83,0.00018078,2]
[367404058,1750785044286,-713.89,0.00018078,2]
[367404059,1750785044296,-460.0,0.00018078,2]
[367404060,1750785044306,-460.0,0.00018078,2]
[367404061,1750785044315,-478.16,0.00018078,2]
[367404062,1750785044325,-460.0,0.00018078,2]
[367404063,1750785044335,-1874.22,0.00018078,2]
[367404064,1750785044343,-921.22,0.00018078,2]
[367404065,1750785044353,-460.0,0.00018079,2]
[367404066,1750785044362,-460.0,0.00018079,2]
[367404067,1750785044370,-1348.12,0.00018079,2]
[367404068,1750785044378,-658.73,0.00018079,2]
[367404069,1750785044386,-1881.76,0.00018079,2]
[367404070,1750785044394,-864.52,0.00018079,2]
[367404071,1750785044403,-864.52,0.00018079,2]
[367404072,1750785044412,-1357.9,0.00018079,2]
[367404073,1750785044422,-460.0,0.00018079,2]
[367404074,1750785044432,-1126.11,0.0001808,2]
[367404075,1750785044441,-460.0,0.0001808,2]
[367404076,1750785044451,-151.0,0.00018082,2]
[367404077,1750785044460,-151.0,0.00018082,2]
[367404078,1750785044469,-460.0,0.00018082,2]
[367404079,1750785044478,-460.0,0.00018082,2]
[367404080,1750785044487,-213.44559997,0.00018082,2]
[367404081,1750785044497,-500.0,0.000181,2]
[367404082,1750785044507,-500.0,0.000181,2]
[367404083,1750785044518,-500.0,0.000181,2]
[367404084,1750785044529,-508.82170255,0.000181,2]
[367404085,1750785044539,-800.0,0.00018116,2]
[367404086,1750785044548,-800.0,0.00018116,2]
[367404087,1750785044557,-151.0,0.0001819,2]
[367404088,1750785044566,-151.0,0.0001819,2]
[367404089,1750785044576,-256.35113141,0.00018198,2]
[367404090,1750785044586,-1085.54040765,0.00018199,2]
[367404091,1750785044595,-151.0,0.000183,2]
[367404092,1750785044604,-151.0,0.000183,2]
[367404093,1750785044613,-1000.0,0.0001833,2]
[367404094,1750785044623,-1000.0,0.0001833,2]
[367404095,1750785044632,-1000.0,0.0001833,2]
[367404096,1750785044642,-698.16933604,0.0001833,2]
[367404097,1750785044662,-301.83066396,0.0001833,2]
[367404098,1750785044672,-1000.0,0.0001833,2]
[367404099,1750785044681,-2928.36,0.0001834,2]
[367404100,1750785044690,-473.47,0.0001834,2]
[367404101,1750785044699,-519.6679819,0.00018341,2]
[367404102,1750785044709,-460.0,0.00018341,2]
[367404103,1750785044718,-1955.78,0.00018342,2]
[367404104,1750785044730,-2843.3,0.00018342,2]
[367404105,1750785044740,-806.96,0.00018342,2]
[367404106,1750785044750,-460.0,0.00018342,2]
[367404107,1750785044759,-1718.2,0.00018342,2]
[367404108,1750785044769,-1574.79,0.00018342,2]
[367404109,1750785044778,-2657.44,0.00018342,2]
[367404110,1750785044787,-460.0,0.00018342,2]
[367404111,1750785044797,-1229.31,0.00018342,2]
[367404112,1750785044808,-781.13,0.00018342,2]
[367404113,1750785044817,-607.42,0.00018342,2]
[367404114,1750785044827,-561.56,0.00018342,2]
[367404115,1750785044836,-526.37,0.00018342,2]
[367404116,1750785044845,-697.64,0.00018342,2]
[367404117,1750785044855,-460.0,0.00018347,2]
[367404118,1750785044868,-176.52773487,0.00018347,2]
[367404119,1750785044878,-460.0,0.00018347,2]
[367404120,1750785044888,-182.86664175,0.00018347,2]
[367404121,1750785044897,-580.43,0.00018347,2]
[367404122,1750785044906,-528.16,0.00018347,2]
[367404123,1750785044915,-460.0,0.00018349,2]
[367404124,1750785044925,-460.0,0.00018349,2]
[367404125,1750785044934,-920.05,0.00018349,2]
[367404126,1750785044943,-864.52,0.00018349,2]
[367404127,1750785044952,-460.0,0.00018349,2]
[367404128,1750785044962,-583.13,0.00018349,2]
[367404129,1750785044971,-4042.08191964,0.0001835,2]
[367404130,1750785044980,-774.22,0.00018351,2]
[367404131,1750785044989,-586.45,0.00018351,2]
[367404132,1750785044999,-572.14,0.00018351,2]
[367404133,1750785045007,-171.16474239,0.00018351,2]
[367404134,1750785045017,-460.0,0.00018351,2]
[367404135,1750785045026,-460.0,0.00018351,2]
[367404136,1750785045035,-1194.79,0.00018351,2]
[367404137,1750785045046,-864.52,0.00018351,2]
[367404138,1750785045055,-563.35,0.00018351,2]
[367404139,1750785045067,-460.0,0.00018351,2]
[367404140,1750785045077,-460.0,0.00018351,2]
[367404141,1750785045086,-528.22,0.00018351,2]
[367404142,1750785045095,-1874.29,0.00018352,2]
[367404143,1750785045104,-460.0,0.00018352,2]
[367404144,1750785045114,-460.0,0.00018352,2]
[367404145,1750785045125,-487.54,0.00018352,2]
[367404146,1750785045135,-526.37,0.00018352,2]
[367404147,1750785045145,-460.0,0.00018352,2]
[367404148,1750785045155,-543.87,0.00018352,2]
[367404149,1750785045166,-460.0,0.00018352,2]
[367404150,1750785045174,-4413.81,0.00018352,2]
[367404151,1750785045182,-709.17,0.00018352,2]
[367404152,1750785045191,-460.0,0.00018352,2]
[367404153,1750785045200,-953.76,0.00018352,2]
[367404154,1750785045210,-629.6,0.00018352,2]
[367404155,1750785045220,-613.13,0.00018352,2]
[367404156,1750785045229,-1830.83,0.00018352,2]
[367404157,1750785045238,-713.89,0.00018352,2]
[367404158,1750785045247,-460.0,0.00018352,2]
[367404159,1750785045256,-460.0,0.00018352,2]
[367404160,1750785045265,-478.16,0.00018352,2]
[367404161,1750785045274,-151.0,0.00018352,2]
[367404162,1750785045283,-238.19537941,0.00018352,2]
[367404163,1750785045293,-1874.22,0.00018352,2]
[367404164,1750785045304,-921.22,0.00018352,2]
[367404165,1750785045313,-151.0,0.00018352,2]
[367404166,1750785045322,-460.0,0.00018353,2]
[367404167,1750785045331,-346.99918423,0.00018353,2]
[367404168,1750785045341,-1348.12,0.00018353,2]
[367404169,1750785045351,-658.73,0.00018353,2]
[367404170,1750785045361,-1881.76,0.00018353,2]
[367404171,1750785045370,-864.52,0.00018353,2]
[367404172,1750785045379,-864.52,0.00018353,2]
[367404173,1750785045388,-864.52,0.00018353,2]
[367404174,1750785045399,-864.52,0.00018353,2]
[367404175,1750785045410,-864.72,0.00018353,2]
[367404176,1750785045419,-1357.9,0.00018353,2]
[367404177,1750785045428,-460.0,0.00018353,2]
[367404178,1750785045438,-1126.11,0.00018354,2]
[367404179,1750785045448,-460.0,0.00018354,2]
[367404180,1750785045457,-460.0,0.00018356,2]
[367404181,1750785045467,-187.0870523,0.00018356,2]
[367404182,1750785045478,-229.664431,0.00018371,2]
[367404183,1750785045487,-229.664431,0.00018371,2]
[367404184,1750785045496,-151.0,0.00018371,2]
[367404185,1750785045506,-151.0,0.00018371,2]
[367404186,1750785045515,-151.0,0.00018371,2]
[367404187,1750785045524,-151.0,0.00018371,2]
[367404188,1750785045534,-282.418099,0.00018371,2]
[367404189,1750785045543,-166.0,0.00018371,2]
[367404190,1750785045554,-1749.0,0.00018371,2]
[367404191,1750785045563,-166.0,0.00018371,2]
[367404192,1750785045572,-397.95407477,0.00018371,2]
[367404193,1750785045583,-166.0,0.00018371,2]
[367404194,1750785045591,-204.22414513,0.00018371,2]
[367404195,1750785045602,-166.0,0.00018371,2]
[367404196,1750785045622,-1749.0,0.00018371,2]
[367404197,1750785045633,-172.0,0.00018371,2]
[367404198,1750785045642,-1749.0,0.00018371,2]
[367404199,1750785045651,-166.0,0.00018371,2]
[367404200,1750785045661,-1749.0,0.00018371,2]
[367404201,1750785045671,-166.0,0.00018371,2]
[367404202,1750785045680,-1749.0,0.00018371,2]
[367404203,1750785045690,-166.0,0.00018371,2]
[367404204,1750785045699,-620.14695614,0.00018371,2]
[367404205,1750785045709,-166.0,0.00018371,2]
[367404206,1750785045718,-1749.0,0.00018371,2]
[367404207,1750785045731,-720.49820065,0.00018371,2]
[367404208,1750785045741,-166.0,0.00018371,2]
[367404209,1750785045750,-1749.0,0.00018371,2]
[367404210,1750785045760,-1749.0,0.00018371,2]
[367404211,1750785045770,-151.0,0.00018371,2]
[367404212,1750785045780,-151.0,0.00018371,2]
[367404213,1750785045790,-846.68469334,0.00018371,7]
[367404214,1750785045800,-260.439774,0.00018371,2]
[367404215,1750785045810,-12556.00642039,0.00018371,7]
[367404216,1750785045821,-524.15841286,0.00018371,7]
[367404217,1750785045832,-151.0,0.00018371,2]
[367404218,1750785045842,-246.017908,0.00018371,2]
[367404219,1750785045852,-151.0,0.00018371,2]
[367404220,1750785045862,-151.0,0.00018371,2]
[367404221,1750785045871,-1749.0,0.00018371,2]
[367404222,1750785045881,-166.0,0.00018371,2]
[367404223,1750785045891,-1749.0,0.00018371,2]
[367404224,1750785045900,-166.0,0.00018371,2]
[367404225,1750785045910,-166.0,0.00018371,2]
[367404226,1750785045920,-166.0,0.00018371,2]
[367404227,1750785045929,-166.0,0.00018371,2]
[367404228,1750785045939,-460.89376799,0.00018371,2]
[367404230,1750785045949,-280.90888736,0.00018371,2]
[367404231,1750785045959,-317.0,0.00018371,2]
[367404234,1750785046149,-317.0,0.00018371,2]
[367404235,1750785046159,-317.0,0.00018371,2]
[367404237,1750785046168,-301.78891088,0.00018371,2]
[367404239,1750785046178,-317.0,0.00018371,2]
[367404241,1750785046188,-5000.0,0.00018427,2]
[367404242,1750785046197,-500.0,0.00018477,2]
[367404244,1750785046207,-500.0,0.00018498,2]
[367404246,1750785046215,-500.0,0.00018498,2]
[367404248,1750785046225,-500.0,0.00018498,2]
[367404250,1750785046235,-424.63261786,0.00018498,2]
[367404252,1750785046244,-500.0,0.00018498,2]
[367404254,1750785046253,-4012.0,0.0001851,2]
[367404256,1750785046263,-304.77796776,0.00018519,2]
[367404259,1750785046272,-229.664431,0.00018524,2]
[367404261,1750785046281,-229.664431,0.00018524,2]
[367404262,1750785046290,-3000.0,0.0001855,2]
[367404263,1750785046300,-500.0,0.00018579,2]
[367404264,1750785046309,-502.89649884,0.00018579,2]
[367404266,1750785046318,-500.0,0.00018579,2]
[367404268,1750785046328,-500.0,0.00018579,2]
[367404270,1750785046337,-500.0,0.00018579,2]
[367404271,1750785046346,-500.0,0.00018586,2]
[367404273,1750785046355,-40983.48343353,0.000186,2]
[367404274,1750785046365,-387.54,0.00018611,3]
[367404275,1750785046374,-2928.36,0.00018614,2]
[367404277,1750785046383,-473.47,0.00018614,2]
[367404279,1750785046392,-1301.6,0.00018615,3]
[367404280,1750785046401,-1084.68,0.00018615,3]
[367404282,1750785046410,-460.0,0.00018615,2]
[367404283,1750785046419,-215.0738,0.00018616,2]
[367404284,1750785046428,-542.34,0.00018616,3]
[367404285,1750785046437,-151.0,0.00018616,2]
[367404286,1750785046446,-151.0,0.00018616,2]
[367404287,1750785046455,-151.0,0.00018616,2]
[367404288,1750785046464,-151.0,0.00018616,2]
[367404289,1750785046475,-1955.78,0.00018616,2]
[367404290,1750785046484,-2843.3,0.00018616,2]
[367404291,1750785046494,-806.96,0.00018616,2]
[367404292,1750785046503,-460.0,0.00018616,2]
[367404293,1750785046512,-1718.2,0.00018616,2]
[367404294,1750785046522,-1574.79,0.00018616,2]
[367404295,1750785046531,-2657.44,0.00018616,2]
[367404296,1750785046540,-335.103973,0.00018616,2]
[367404297,1750785046550,-335.103973,0.00018616,2]
[367404298,1750785046560,-460.0,0.00018616,2]
[367404299,1750785046569,-151.0,0.00018616,2]
[367404300,1750785046578,-1229.31,0.00018616,2]
[367404301,1750785046587,-151.0,0.00018616,2]
[367404302,1750785046597,-781.13,0.00018616,2]
[367404303,1750785046606,-607.42,0.00018616,2]
[367404304,1750785046615,-561.56,0.00018616,2]
[367404305,1750785046624,-526.37,0.00018616,2]
[367404306,1750785046634,-697.64,0.00018616,2]
[367404307,1750785046642,-151.0,0.00018621,2]
[367404308,1750785046651,-151.0,0.00018621,2]
[367404309,1750785046661,-460.0,0.00018621,2]
[367404310,1750785046670,-460.0,0.00018621,2]
[367404311,1750785046679,-580.43,0.00018621,2]
[367404312,1750785046688,-528.16,0.00018621,2]
[367404313,1750785046697,-460.0,0.00018623,2]
[367404314,1750785046707,-460.0,0.00018623,2]
[367404315,1750785046716,-920.05,0.00018623,2]
[367404316,1750785046726,-460.0,0.00018623,2]
[367404317,1750785046738,-583.13,0.00018623,2]
[367404318,1750785046755,-774.22,0.00018625,2]
[367404319,1750785046768,-586.45,0.00018625,2]
[367404320,1750785046777,-572.14,0.00018625,2]
[367404321,1750785046787,-460.0,0.00018625,2]
[367404322,1750785046798,-460.0,0.00018625,2]
[367404324,1750785046809,-1194.79,0.00018625,2]
[367404325,1750785046819,-563.35,0.00018625,2]
[367404326,1750785046828,-460.0,0.00018625,2]
[367404327,1750785046837,-460.0,0.00018625,2]
[367404328,1750785046846,-528.22,0.00018625,2]
[367404329,1750785046855,-1874.29,0.00018626,2]
[367404330,1750785046864,-460.0,0.00018626,2]
[367404331,1750785046874,-460.0,0.00018626,2]
[367404332,1750785046885,-487.54,0.00018626,2]
[367404333,1750785046895,-526.37,0.00018626,2]
[367404334,1750785046904,-348.33956089,0.00018626,2]
[367404335,1750785046914,-543.87,0.00018626,2]
[367404336,1750785046923,-460.0,0.00018626,2]
[367404337,1750785046932,-4413.81,0.00018626,2]
[367404338,1750785046942,-709.17,0.00018626,2]
[367404339,1750785046951,-460.0,0.00018626,2]
[367404340,1750785046961,-953.76,0.00018626,2]
[367404341,1750785046971,-629.6,0.00018626,2]
[367404342,1750785046980,-613.13,0.00018626,2]
[367404343,1750785046990,-1830.83,0.00018626,2]
[367404344,1750785046999,-713.89,0.00018626,2]
[367404345,1750785047009,-460.0,0.00018626,2]
[367404346,1750785047019,-460.0,0.00018626,2]
[367404347,1750785047028,-478.16,0.00018626,2]
[367404348,1750785047037,-151.0,0.00018626,2]
[367404349,1750785047048,-1874.22,0.00018626,2]
[367404350,1750785047057,-921.22,0.00018626,2]
[367404351,1750785047066,-151.0,0.00018626,2]
[367404352,1750785047075,-151.0,0.00018627,2]
[367404353,1750785047087,-151.0,0.00018627,2]
[367404354,1750785047096,-460.0,0.00018627,2]
[367404355,1750785047105,-151.0,0.00018627,2]
[367404356,1750785047114,-151.0,0.00018627,2]
[367404357,1750785047124,-528.92139,0.00018627,2]
[367404358,1750785047133,-528.92139,0.00018627,2]
[367404359,1750785047142,-1348.12,0.00018627,2]
[367404360,1750785047151,-1881.76,0.00018627,2]
[367404361,1750785047160,-658.73,0.00018627,2]
[367404362,1750785047170,-1357.9,0.00018627,2]
[367404363,1750785047178,-460.0,0.00018627,2]
[367404364,1750785047188,-151.0,0.00018628,2]
[367404365,1750785047197,-1126.11,0.00018628,2]
[367404366,1750785047208,-460.0,0.00018628,2]
[367404367,1750785047217,-229.664431,0.0001863,2]
[367404368,1750785047226,-229.664431,0.0001863,2]
[367404369,1750785047235,-460.0,0.0001863,2]
[367404370,1750785047244,-460.0,0.00018635,2]
[367404371,1750785047253,-230.0,0.00018635,2]
[367404372,1750785047262,-230.0,0.00018635,2]
[367404373,1750785047271,-151.0,0.00018643,2]
[367404374,1750785047280,-510.86747445,0.00018643,2]
[367404375,1750785047290,-500.0,0.00018643,2]
[367404376,1750785047299,-500.0,0.00018643,2]
[367404377,1750785047308,-583.34115106,0.00018643,2]
[367404378,1750785047318,-500.0,0.00018643,2]
[367404379,1750785047327,-500.0,0.00018643,2]
[367404380,1750785047336,-500.0,0.00018643,2]
[367404381,1750785047345,-500.0,0.00018647,2]
[367404382,1750785047354,-500.0,0.00018647,2]
[367404383,1750785047363,-500.0,0.00018648,2]
[367404384,1750785047372,-1000.0,0.00018648,2]
[367404385,1750785047381,-1000.0,0.00018648,2]
[367404386,1750785047390,-151.0,0.00018677,2]
[367404387,1750785047399,-151.0,0.00018677,2]
[367404388,1750785047408,-151.0,0.00018677,2]
[367404389,1750785047417,-151.0,0.00018677,2]
[367404390,1750785047427,-151.0,0.00018677,2]
[367404391,1750785047436,-151.0,0.00018677,2]
[367404392,1750785047445,-563.744354,0.00018677,2]
[367404393,1750785047454,-563.744354,0.00018677,2]
[367404394,1750785047464,-606.551101,0.00018677,2]
[367404395,1750785047474,-606.551101,0.00018677,2]
[367404396,1750785047484,-500.0,0.00018677,2]
[367404397,1750785047494,-500.0,0.00018677,2]
[367404398,1750785047504,-500.0,0.00018677,2]
[367404399,1750785047514,-500.0,0.0001869,2]
[367404400,1750785047523,-500.0,0.00018698,2]
[367404401,1750785047534,-500.0,0.00018698,2]
[367404402,1750785047543,-1085.54040765,0.00018719,2]
[367404403,1750785047553,-500.0,0.0001872,2]
[367404404,1750785047563,-500.0,0.0001872,2]
[367404405,1750785047572,-412.00241626,0.0001872,2]
[367404406,1750785047581,-151.0,0.00018721,2]
[367404407,1750785047590,-151.0,0.00018721,2]
[367404408,1750785047599,-4012.0,0.00018782,2]
[367404409,1750785047608,-420.0,0.00018827,2]
[367404410,1750785047618,-420.0,0.00018829,2]
[367404411,1750785047627,-500.0,0.0001885,2]
[367404412,1750785047636,-500.0,0.0001885,2]
[367404413,1750785047645,-526.48524204,0.00018877,2]
[367404414,1750785047654,-1500.0,0.00018877,2]
[367404415,1750785047664,-1110.27674679,0.00018877,2]
[367404416,1750785047674,-893.77224128,0.00018877,2]
[367404417,1750785047683,-1500.0,0.00018877,2]
[367404418,1750785047691,-2928.36,0.00018888,2]
[367404419,1750785047701,-473.47,0.00018888,2]
[367404420,1750785047711,-460.0,0.00018889,2]
[367404421,1750785047720,-1955.78,0.0001889,2]
[367404422,1750785047733,-2843.3,0.0001889,2]